[Event "Titled Tuesday Blitz May 31 Late 2022"]
[White "Kosteniuk, Alexandra"]
[Black "Pichot, Alan"]
[WhiteFideId "4128125"]
[BlackFideId "110973"]
[WhiteElo "2469"]
[BlackElo "2579"]
[Result "1-0"]
[Round "05"]
[TimeControl "180+1"]
[Date "2022.06.01"]
[WhiteClock "0:00:05"]
[BlackClock "0:00:06"]

1. e4 {[%clk 0:03:00]}  e5 {[%clk 0:02:58]} 2. Nf3 {[%clk 0:03:00]}  Nc6 {[%clk 0:02:58]} 3. Bc4 {[%clk 0:03:00]}  Bc5 {[%clk 0:02:58]} 4. c3 {[%clk 0:03:00]}  Nf6 {[%clk 0:02:58]} 5. d4 {[%clk 0:03:01]}  exd4 {[%clk 0:02:58]} 6. cxd4 {[%clk 0:03:02]}  Bb4+ {[%clk 0:02:58]} 7. Nbd2 {[%clk 0:03:02]}  O-O {[%clk 0:02:56]} 8. e5 {[%clk 0:02:57]}  Ne4 {[%clk 0:02:50]} 9. Bd3 {[%clk 0:02:53]}  d5 {[%clk 0:02:47]} 10. O-O {[%clk 0:02:52]}  Nxd2 {[%clk 0:02:40]} 11. Bxd2 {[%clk 0:02:50]}  Bg4 {[%clk 0:02:40]} 12. Be3 {[%clk 0:02:26]}  Ba5 {[%clk 0:02:17]} 13. h3 {[%clk 0:02:16]}  Bh5 {[%clk 0:02:16]} 14. a3 {[%clk 0:02:10]}  Bb6 {[%clk 0:02:16]} 15. Be2 {[%clk 0:01:53]}  Ne7 {[%clk 0:02:13]} 16. g4 {[%clk 0:01:50]}  Bg6 {[%clk 0:02:13]} 17. Rc1 {[%clk 0:01:42]}  Qd7 {[%clk 0:01:55]} 18. Nh4 {[%clk 0:01:39]}  f5 {[%clk 0:01:52]} 19. f4 {[%clk 0:01:34]}  Bf7 {[%clk 0:01:48]} 20. g5 {[%clk 0:01:33]}  Be6 {[%clk 0:01:47]} 21. Nf3 {[%clk 0:01:27]}  Rac8 {[%clk 0:01:44]} 22. b4 {[%clk 0:01:25]}  a5 {[%clk 0:01:43]} 23. h4 {[%clk 0:01:19]}  Rfd8 {[%clk 0:01:42]} 24. h5 {[%clk 0:01:18]}  Qe8 {[%clk 0:01:42]} 25. Nh4 {[%clk 0:01:18]}  Ra8 {[%clk 0:01:39]} 26. b5 {[%clk 0:01:16]}  c6 {[%clk 0:01:27]} 27. a4 {[%clk 0:01:16]}  Rac8 {[%clk 0:01:26]} 28. Kh2 {[%clk 0:01:15]}  Rc7 {[%clk 0:01:26]} 29. bxc6 {[%clk 0:01:12]}  Nxc6 {[%clk 0:01:25]} 30. Bb5 {[%clk 0:01:09]}  Qe7 {[%clk 0:01:24]} 31. Qd3 {[%clk 0:01:06]}  Nb4 {[%clk 0:01:17]} 32. Qb1 {[%clk 0:01:04]}  Rf8 {[%clk 0:01:05]} 33. Kg3 {[%clk 0:00:57]}  Ba7 {[%clk 0:01:02]} 34. Rxc7 {[%clk 0:00:56]}  Qxc7 {[%clk 0:01:02]} 35. Rc1 {[%clk 0:00:56]}  Qe7 {[%clk 0:01:00]} 36. Qb2 {[%clk 0:00:50]}  Bb6 {[%clk 0:00:52]} 37. Bd2 {[%clk 0:00:39]}  Rd8 {[%clk 0:00:36]} 38. g6 {[%clk 0:00:35]}  h6 {[%clk 0:00:36]} 39. Nf3 {[%clk 0:00:35]}  Rc8 {[%clk 0:00:30]} 40. Rxc8+ {[%clk 0:00:33]}  Bxc8 {[%clk 0:00:31]} 41. Ne1 {[%clk 0:00:28]}  Be6 {[%clk 0:00:27]} 42. Nf3 {[%clk 0:00:27]}  Kf8 {[%clk 0:00:26]} 43. Bc3 {[%clk 0:00:25]}  Kg8 {[%clk 0:00:23]} 44. Qd2 {[%clk 0:00:24]}  Bc8 {[%clk 0:00:20]} 45. Ne1 {[%clk 0:00:20]}  Be6 {[%clk 0:00:20]} 46. Nf3 {[%clk 0:00:19]}  Bc7 {[%clk 0:00:16]} 47. Ne1 {[%clk 0:00:18]}  Bd8 {[%clk 0:00:14]} 48. Nf3 {[%clk 0:00:18]}  Kf8 {[%clk 0:00:15]} 49. Qb2 {[%clk 0:00:15]}  Kg8 {[%clk 0:00:12]} 50. Qd2 {[%clk 0:00:15]}  Qf8 {[%clk 0:00:13]} 51. Qb2 {[%clk 0:00:15]}  Be7 {[%clk 0:00:13]} 52. Bd2 {[%clk 0:00:14]}  Qc8 {[%clk 0:00:13]} 53. Qc3 {[%clk 0:00:14]}  Qd8 {[%clk 0:00:10]} 54. Kg2 {[%clk 0:00:12]}  Qb6 {[%clk 0:00:10]} 55. Ne1 {[%clk 0:00:11]}  Nc6 {[%clk 0:00:10]} 56. Nc2 {[%clk 0:00:11]}  Bb4 {[%clk 0:00:07]} 57. Qd3 {[%clk 0:00:11]}  Be7 {[%clk 0:00:06]} 58. Qc3 {[%clk 0:00:10]}  Kf8 {[%clk 0:00:05]} 59. Bxc6 {[%clk 0:00:10]}  bxc6 {[%clk 0:00:05]} 60. Qxa5 {[%clk 0:00:10]}  Qb7 {[%clk 0:00:04]} 61. Qc3 {[%clk 0:00:09]}  Qa6 {[%clk 0:00:03]} 62. Kf2 {[%clk 0:00:06]}  Qxa4 {[%clk 0:00:04]} 63. Nb4 {[%clk 0:00:06]}  Bd7 {[%clk 0:00:02]} 64. Nd3 {[%clk 0:00:06]}  Qb5 {[%clk 0:00:02]} 65. Nc5 {[%clk 0:00:06]}  Bc8 {[%clk 0:00:03]} 66. Nd3 {[%clk 0:00:06]}  Ba6 {[%clk 0:00:03]} 67. Ke3 {[%clk 0:00:06]}  Bh4 {[%clk 0:00:03]} 68. Bc1 {[%clk 0:00:05]}  Ke8 {[%clk 0:00:02]} 69. Ba3 {[%clk 0:00:05]}  Bg3 {[%clk 0:00:02]} 70. Qc2 {[%clk 0:00:03]}  Qxd3+ {[%clk 0:00:02]} 71. Qxd3 {[%clk 0:00:03]}  Bxd3 {[%clk 0:00:03]} 72. Kxd3 {[%clk 0:00:04]}  Bxf4 {[%clk 0:00:04]} 73. Bd6 {[%clk 0:00:04]}  Bg5 {[%clk 0:00:04]} 74. Bc5 {[%clk 0:00:04]}  Bd8 {[%clk 0:00:04]} 75. Bd6 {[%clk 0:00:04]}  Bg5 {[%clk 0:00:04]} 76. Bc5 {[%clk 0:00:04]}  Be7 {[%clk 0:00:05]} 77. Bb6 {[%clk 0:00:04]}  Kd7 {[%clk 0:00:05]} 78. Ba7 {[%clk 0:00:04]}  Ke6 {[%clk 0:00:05]} 79. Ke3 {[%clk 0:00:04]}  c5 {[%clk 0:00:05]} 80. dxc5 {[%clk 0:00:04]}  Kxe5 {[%clk 0:00:06]} 81. c6 {[%clk 0:00:04]}  Bd6 {[%clk 0:00:06]} 82. Bd4+ {[%clk 0:00:04]}  Ke6 {[%clk 0:00:06]} 83. Bxg7 {[%clk 0:00:05]}  f4+ {[%clk 0:00:05]} 84. Kf3 {[%clk 0:00:05]}  Kf5 {[%clk 0:00:06]} 85. Bxh6 {[%clk 0:00:05]}  Kf6 {[%clk 0:00:06]} 86. Bxf4 {[%clk 0:00:05]}  Bf8 {[%clk 0:00:06]} 87. c7 {[%clk 0:00:05]} 1-0


[Site "https://www.chess.com"]

[Event "Titled Tuesday Blitz May 31 Late 2022"]
[White "Kovacevic, Radmila"]
[Black "Gomez Dieguez, David"]
[WhiteFideId "933171"]
[BlackFideId "22223630"]
[WhiteElo "2115"]
[BlackElo "2115"]
[Result "1-0"]
[Round "05"]
[TimeControl "180+1"]
[Date "2022.06.01"]
[WhiteClock "0:00:05"]
[BlackClock "0:00:15"]

1. e4 {[%clk 0:02:55]}  c6 {[%clk 0:02:59]} 2. d4 {[%clk 0:02:54]}  d5 {[%clk 0:03:00]} 3. exd5 {[%clk 0:02:53]}  cxd5 {[%clk 0:03:01]} 4. Nf3 {[%clk 0:02:53]}  Nf6 {[%clk 0:02:59]} 5. Bd3 {[%clk 0:02:52]}  Nc6 {[%clk 0:02:59]} 6. O-O {[%clk 0:02:53]}  Bg4 {[%clk 0:02:57]} 7. c3 {[%clk 0:02:53]}  e6 {[%clk 0:02:57]} 8. Qb3 {[%clk 0:02:52]}  Bxf3 {[%clk 0:02:48]} 9. Qxb7 {[%clk 0:02:52]}  Qc8 {[%clk 0:02:43]} 10. Ba6 {[%clk 0:02:47]}  Ne7 {[%clk 0:02:16]} 11. Qb5+ {[%clk 0:02:34]}  Qd7 {[%clk 0:02:10]} 12. gxf3 {[%clk 0:02:25]}  Qxb5 {[%clk 0:02:02]} 13. Bxb5+ {[%clk 0:02:26]}  Kd8 {[%clk 0:02:03]} 14. a4 {[%clk 0:02:14]}  a6 {[%clk 0:02:02]} 15. Bd3 {[%clk 0:02:12]}  Ng6 {[%clk 0:02:00]} 16. Bg5 {[%clk 0:02:01]}  Bd6 {[%clk 0:01:53]} 17. Re1 {[%clk 0:01:53]}  Nf4 {[%clk 0:01:48]} 18. Bf1 {[%clk 0:01:36]}  h6 {[%clk 0:01:46]} 19. Bh4 {[%clk 0:01:30]}  Kd7 {[%clk 0:01:44]} 20. Nd2 {[%clk 0:01:23]}  Rhb8 {[%clk 0:01:43]} 21. b4 {[%clk 0:01:21]}  Rc8 {[%clk 0:01:41]} 22. Re3 {[%clk 0:01:17]}  Ng6 {[%clk 0:01:33]} 23. Bg3 {[%clk 0:01:16]}  Nf4 {[%clk 0:01:21]} 24. b5 {[%clk 0:01:12]}  axb5 {[%clk 0:01:10]} 25. Bxb5+ {[%clk 0:01:12]}  Ke7 {[%clk 0:01:10]} 26. Nb3 {[%clk 0:01:07]}  Rcb8 {[%clk 0:01:02]} 27. Rae1 {[%clk 0:01:05]}  g5 {[%clk 0:00:52]} 28. Kf1 {[%clk 0:00:57]}  Kf8 {[%clk 0:00:52]} 29. Nc5 {[%clk 0:00:53]}  h5 {[%clk 0:00:35]} 30. h4 {[%clk 0:00:43]}  Rc8 {[%clk 0:00:24]} 31. hxg5 {[%clk 0:00:41]}  Nh7 {[%clk 0:00:24]} 32. Nd7+ {[%clk 0:00:37]}  Kg7 {[%clk 0:00:20]} 33. Nb6 {[%clk 0:00:28]}  Nxg5 {[%clk 0:00:20]} 34. Nxa8 {[%clk 0:00:25]}  Rxa8 {[%clk 0:00:21]} 35. Re5 {[%clk 0:00:20]}  Bxe5 {[%clk 0:00:19]} 36. Rxe5 {[%clk 0:00:21]}  f6 {[%clk 0:00:18]} 37. Bxf4 {[%clk 0:00:20]}  fxe5 {[%clk 0:00:17]} 38. Bxg5 {[%clk 0:00:20]}  Kg6 {[%clk 0:00:18]} 39. Be3 {[%clk 0:00:19]}  exd4 {[%clk 0:00:18]} 40. Bxd4 {[%clk 0:00:19]}  Kf5 {[%clk 0:00:18]} 41. Bd3+ {[%clk 0:00:18]}  Kg5 {[%clk 0:00:18]} 42. Bc2 {[%clk 0:00:18]}  h4 {[%clk 0:00:17]} 43. Kg2 {[%clk 0:00:17]}  Rb8 {[%clk 0:00:16]} 44. Be3+ {[%clk 0:00:15]}  Kh5 {[%clk 0:00:15]} 45. a5 {[%clk 0:00:13]}  Rb2 {[%clk 0:00:15]} 46. Bd1 {[%clk 0:00:11]}  Ra2 {[%clk 0:00:15]} 47. f4+ {[%clk 0:00:11]}  Kg6 {[%clk 0:00:15]} 48. Bb6 {[%clk 0:00:11]}  Kf5 {[%clk 0:00:14]} 49. Bc7 {[%clk 0:00:10]}  Rd2 {[%clk 0:00:12]} 50. Bf3 {[%clk 0:00:08]}  Ra2 {[%clk 0:00:11]} 51. Kh3 {[%clk 0:00:06]}  Ra3 {[%clk 0:00:10]} 52. Bg4+ {[%clk 0:00:05]}  Kf6 {[%clk 0:00:10]} 53. Kxh4 {[%clk 0:00:06]}  Rxc3 {[%clk 0:00:10]} 54. Be5+ {[%clk 0:00:06]}  Kg6 {[%clk 0:00:10]} 55. Bxc3 {[%clk 0:00:07]}  e5 {[%clk 0:00:09]} 56. Bxe5 {[%clk 0:00:07]}  Kh6 {[%clk 0:00:10]} 57. Be6 {[%clk 0:00:07]}  Kg6 {[%clk 0:00:11]} 58. Bxd5 {[%clk 0:00:07]}  Kh6 {[%clk 0:00:11]} 59. a6 {[%clk 0:00:05]}  Kg6 {[%clk 0:00:12]} 60. a7 {[%clk 0:00:05]}  Kf5 {[%clk 0:00:13]} 61. f3 {[%clk 0:00:05]}  Kg6 {[%clk 0:00:14]} 62. a8=Q {[%clk 0:00:04]}  Kf5 {[%clk 0:00:15]} 63. Qf8+ {[%clk 0:00:04]}  Kg6 {[%clk 0:00:16]} 64. Qf7+ {[%clk 0:00:04]}  Kh6 {[%clk 0:00:15]} 65. Qg7# {[%clk 0:00:05]} 1-0


[Site "https://www.chess.com"]

[Event "Titled Tuesday Blitz May 31 Late 2022"]
[White "Leitao, Rafael"]
[Black "Hansen, Eric"]
[WhiteFideId "2101246"]
[BlackFideId "2606771"]
[WhiteElo "2609"]
[BlackElo "2568"]
[Result "0-1"]
[Round "05"]
[TimeControl "180+1"]
[Date "2022.05.31"]
[WhiteClock "0:00:07"]
[BlackClock "0:00:12"]

1. e4 {[%clk 0:03:00]}  c5 {[%clk 0:02:09]} 2. Nf3 {[%clk 0:02:55]}  e6 {[%clk 0:02:09]} 3. d4 {[%clk 0:02:55]}  cxd4 {[%clk 0:02:10]} 4. Nxd4 {[%clk 0:02:55]}  Nc6 {[%clk 0:02:10]} 5. Nc3 {[%clk 0:02:54]}  d6 {[%clk 0:02:09]} 6. Be2 {[%clk 0:02:52]}  Nf6 {[%clk 0:02:09]} 7. O-O {[%clk 0:02:51]}  Be7 {[%clk 0:02:08]} 8. Kh1 {[%clk 0:02:46]}  O-O {[%clk 0:02:07]} 9. f4 {[%clk 0:02:46]}  Bd7 {[%clk 0:02:06]} 10. Nb3 {[%clk 0:02:34]}  a5 {[%clk 0:02:02]} 11. a4 {[%clk 0:02:33]}  Rc8 {[%clk 0:02:01]} 12. Bf3 {[%clk 0:02:26]}  Nb4 {[%clk 0:01:57]} 13. Be3 {[%clk 0:02:12]}  e5 {[%clk 0:01:57]} 14. Qe2 {[%clk 0:01:59]}  Be6 {[%clk 0:01:56]} 15. Rad1 {[%clk 0:01:55]}  Bc4 {[%clk 0:01:53]} 16. Qf2 {[%clk 0:01:54]}  exf4 {[%clk 0:01:50]} 17. Bb6 {[%clk 0:01:52]}  Qe8 {[%clk 0:01:44]} 18. Rfe1 {[%clk 0:01:48]}  Nd7 {[%clk 0:01:12]} 19. Bxa5 {[%clk 0:01:42]}  Nc6 {[%clk 0:01:12]} 20. Bb6 {[%clk 0:01:30]}  Nxb6 {[%clk 0:01:07]} 21. Qxb6 {[%clk 0:01:30]}  Qd8 {[%clk 0:01:07]} 22. Qxd8 {[%clk 0:01:23]}  Rfxd8 {[%clk 0:01:07]} 23. Nd5 {[%clk 0:00:51]}  Bxd5 {[%clk 0:01:07]} 24. exd5 {[%clk 0:00:49]}  Ne5 {[%clk 0:01:07]} 25. Nd4 {[%clk 0:00:44]}  Rc4 {[%clk 0:01:05]} 26. Be2 {[%clk 0:00:38]}  Rxa4 {[%clk 0:01:00]} 27. Bb5 {[%clk 0:00:36]}  Ra2 {[%clk 0:00:55]} 28. b3 {[%clk 0:00:33]}  Bf6 {[%clk 0:00:51]} 29. h3 {[%clk 0:00:30]}  g6 {[%clk 0:00:39]} 30. Re2 {[%clk 0:00:29]}  Rc8 {[%clk 0:00:37]} 31. c4 {[%clk 0:00:29]}  Rca8 {[%clk 0:00:31]} 32. b4 {[%clk 0:00:17]}  b6 {[%clk 0:00:19]} 33. Rf1 {[%clk 0:00:16]}  Bg5 {[%clk 0:00:16]} 34. Rxa2 {[%clk 0:00:12]}  Rxa2 {[%clk 0:00:17]} 35. Nc6 {[%clk 0:00:11]}  f3 {[%clk 0:00:14]} 36. gxf3 {[%clk 0:00:10]}  Bf4 {[%clk 0:00:14]} 37. Nxe5 {[%clk 0:00:10]}  Bxe5 {[%clk 0:00:13]} 38. Rd1 {[%clk 0:00:08]}  Rh2+ {[%clk 0:00:11]} 39. Kg1 {[%clk 0:00:08]}  Rb2 {[%clk 0:00:12]} 40. c5 {[%clk 0:00:07]}  bxc5 {[%clk 0:00:12]} 0-1


[Site "https://www.chess.com"]

[Event "Titled Tuesday Blitz May 31 Late 2022"]
[White "Leiva, Gianmarco"]
[Black "Moral Garcia, Serafin"]
[WhiteFideId "3804399"]
[BlackFideId "2201925"]
[WhiteElo "2323"]
[BlackElo "2228"]
[Result "1/2-1/2"]
[Round "05"]
[TimeControl "180+1"]
[Date "2022.06.01"]
[WhiteClock "0:00:12"]
[BlackClock "0:00:25"]

1. Nf3 {[%clk 0:03:00]}  Nf6 {[%clk 0:02:59]} 2. g3 {[%clk 0:03:01]}  g6 {[%clk 0:02:57]} 3. Bg2 {[%clk 0:03:02]}  Bg7 {[%clk 0:02:57]} 4. O-O {[%clk 0:03:03]}  O-O {[%clk 0:02:58]} 5. d4 {[%clk 0:03:04]}  d5 {[%clk 0:02:58]} 6. c4 {[%clk 0:03:04]}  dxc4 {[%clk 0:02:58]} 7. Na3 {[%clk 0:03:04]}  c3 {[%clk 0:02:58]} 8. bxc3 {[%clk 0:03:04]}  c5 {[%clk 0:02:59]} 9. e3 {[%clk 0:03:01]}  Nc6 {[%clk 0:02:42]} 10. Qe2 {[%clk 0:02:55]}  Nd5 {[%clk 0:02:38]} 11. Bb2 {[%clk 0:02:54]}  Nb6 {[%clk 0:02:37]} 12. Rac1 {[%clk 0:02:43]}  Qd5 {[%clk 0:02:30]} 13. c4 {[%clk 0:02:15]}  Qh5 {[%clk 0:02:27]} 14. d5 {[%clk 0:02:14]}  Ne5 {[%clk 0:02:24]} 15. Bxe5 {[%clk 0:01:21]}  Bxe5 {[%clk 0:02:23]} 16. h3 {[%clk 0:01:03]}  Bg7 {[%clk 0:02:17]} 17. g4 {[%clk 0:01:03]}  Qh6 {[%clk 0:02:16]} 18. Nb1 {[%clk 0:01:00]}  Bd7 {[%clk 0:02:06]} 19. Nbd2 {[%clk 0:01:00]}  e6 {[%clk 0:02:03]} 20. Ne4 {[%clk 0:00:53]}  f6 {[%clk 0:01:55]} 21. Nxc5 {[%clk 0:00:50]}  e5 {[%clk 0:01:51]} 22. Nxb7 {[%clk 0:00:37]}  f5 {[%clk 0:01:48]} 23. g5 {[%clk 0:00:36]}  Qh5 {[%clk 0:01:46]} 24. Rfe1 {[%clk 0:00:21]}  e4 {[%clk 0:01:44]} 25. c5 {[%clk 0:00:09]}  exf3 {[%clk 0:01:41]} 26. Qxf3 {[%clk 0:00:08]}  Qxg5 {[%clk 0:01:32]} 27. cxb6 {[%clk 0:00:06]}  axb6 {[%clk 0:01:32]} 28. Rc7 {[%clk 0:00:04]}  Be8 {[%clk 0:01:29]} 29. d6 {[%clk 0:00:04]}  Bf7 {[%clk 0:01:28]} 30. Rxf7 {[%clk 0:00:02]}  Rxf7 {[%clk 0:01:26]} 31. Qc6 {[%clk 0:00:02]}  Rff8 {[%clk 0:01:19]} 32. d7 {[%clk 0:00:02]}  Bf6 {[%clk 0:01:15]} 33. Rd1 {[%clk 0:00:02]}  f4 {[%clk 0:01:14]} 34. Qc4+ {[%clk 0:00:02]}  Kg7 {[%clk 0:01:08]} 35. Qxf4 {[%clk 0:00:03]}  Qxf4 {[%clk 0:01:05]} 36. exf4 {[%clk 0:00:04]}  Bd8 {[%clk 0:01:05]} 37. Nxd8 {[%clk 0:00:02]}  Raxd8 {[%clk 0:01:02]} 38. a4 {[%clk 0:00:03]}  Rxf4 {[%clk 0:01:01]} 39. Bc6 {[%clk 0:00:04]}  Rf6 {[%clk 0:00:59]} 40. Bb5 {[%clk 0:00:04]}  Kf8 {[%clk 0:00:59]} 41. Re1 {[%clk 0:00:04]}  Kg7 {[%clk 0:00:58]} 42. Re7+ {[%clk 0:00:05]}  Rf7 {[%clk 0:00:57]} 43. Re8 {[%clk 0:00:05]}  Rfxd7 {[%clk 0:00:57]} 44. Bxd7 {[%clk 0:00:05]}  Rxd7 {[%clk 0:00:57]} 45. Rb8 {[%clk 0:00:05]}  Rd4 {[%clk 0:00:57]} 46. Rxb6 {[%clk 0:00:05]}  Rxa4 {[%clk 0:00:57]} 47. Rb3 {[%clk 0:00:06]}  h5 {[%clk 0:00:56]} 48. Rg3 {[%clk 0:00:07]}  Kh6 {[%clk 0:00:56]} 49. Kg2 {[%clk 0:00:07]}  g5 {[%clk 0:00:54]} 50. Kg1 {[%clk 0:00:08]}  Kg6 {[%clk 0:00:52]} 51. Rb3 {[%clk 0:00:08]}  h4 {[%clk 0:00:51]} 52. Kg2 {[%clk 0:00:08]}  Kh5 {[%clk 0:00:51]} 53. Rb7 {[%clk 0:00:08]}  Ra5 {[%clk 0:00:48]} 54. Rb8 {[%clk 0:00:09]}  Ra4 {[%clk 0:00:47]} 55. Rh8+ {[%clk 0:00:10]}  Kg6 {[%clk 0:00:46]} 56. Rg8+ {[%clk 0:00:10]}  Kh5 {[%clk 0:00:46]} 57. Rg7 {[%clk 0:00:10]}  Kh6 {[%clk 0:00:46]} 58. Rb7 {[%clk 0:00:10]}  Kh5 {[%clk 0:00:47]} 59. Rb5 {[%clk 0:00:11]}  Kh6 {[%clk 0:00:47]} 60. Kh2 {[%clk 0:00:11]}  Kh5 {[%clk 0:00:47]} 61. Rc5 {[%clk 0:00:11]}  Kh6 {[%clk 0:00:47]} 62. Rd5 {[%clk 0:00:12]}  Kh5 {[%clk 0:00:47]} 63. Re5 {[%clk 0:00:12]}  Kh6 {[%clk 0:00:46]} 64. Kg2 {[%clk 0:00:13]}  Kh5 {[%clk 0:00:38]} 65. Re6 {[%clk 0:00:13]}  Rb4 {[%clk 0:00:37]} 66. Rf6 {[%clk 0:00:13]}  Ra4 {[%clk 0:00:37]} 67. Kf3 {[%clk 0:00:13]}  Ra3+ {[%clk 0:00:37]} 68. Kg2 {[%clk 0:00:09]}  Ra4 {[%clk 0:00:37]} 69. Rf5 {[%clk 0:00:08]}  Rb4 {[%clk 0:00:37]} 70. Ra5 {[%clk 0:00:08]}  Rc4 {[%clk 0:00:37]} 71. Rb5 {[%clk 0:00:08]}  Rd4 {[%clk 0:00:37]} 72. Rb6 {[%clk 0:00:08]}  Rc4 {[%clk 0:00:36]} 73. Ra6 {[%clk 0:00:09]}  Rd4 {[%clk 0:00:37]} 74. Rb6 {[%clk 0:00:09]}  Rc4 {[%clk 0:00:37]} 75. Re6 {[%clk 0:00:09]}  Rd4 {[%clk 0:00:37]} 76. Re8 {[%clk 0:00:10]}  Rc4 {[%clk 0:00:37]} 77. Re3 {[%clk 0:00:10]}  Rb4 {[%clk 0:00:36]} 78. Kf3 {[%clk 0:00:11]}  Rf4+ {[%clk 0:00:36]} 79. Ke2 {[%clk 0:00:11]}  Rb4 {[%clk 0:00:36]} 80. Ke1 {[%clk 0:00:11]}  Rc4 {[%clk 0:00:35]} 81. Kf1 {[%clk 0:00:12]}  Rb4 {[%clk 0:00:36]} 82. Rc3 {[%clk 0:00:12]}  Rd4 {[%clk 0:00:35]} 83. Rb3 {[%clk 0:00:12]}  Re4 {[%clk 0:00:36]} 84. Ra3 {[%clk 0:00:13]}  Rd4 {[%clk 0:00:36]} 85. Kg2 {[%clk 0:00:13]}  Kg6 {[%clk 0:00:35]} 86. Kf3 {[%clk 0:00:11]}  Kf5 {[%clk 0:00:35]} 87. Ra6 {[%clk 0:00:10]}  Rd3+ {[%clk 0:00:34]} 88. Kg2 {[%clk 0:00:11]}  Rc3 {[%clk 0:00:34]} 89. Rd6 {[%clk 0:00:11]}  Ke5 {[%clk 0:00:34]} 90. Rb6 {[%clk 0:00:11]}  Kf5 {[%clk 0:00:35]} 91. Ra6 {[%clk 0:00:11]}  Ke5 {[%clk 0:00:35]} 92. Ra5+ {[%clk 0:00:12]}  Kf4 {[%clk 0:00:34]} 93. Ra8 {[%clk 0:00:11]}  Kf5 {[%clk 0:00:34]} 94. Rf8+ {[%clk 0:00:11]}  Kg6 {[%clk 0:00:34]} 95. Rb8 {[%clk 0:00:10]}  Kf5 {[%clk 0:00:34]} 96. Rb6 {[%clk 0:00:10]}  Ke5 {[%clk 0:00:34]} 97. Kh2 {[%clk 0:00:10]}  Kf5 {[%clk 0:00:34]} 98. Rb5+ {[%clk 0:00:10]}  Kg6 {[%clk 0:00:34]} 99. Rd5 {[%clk 0:00:09]}  Kh5 {[%clk 0:00:34]} 100. f4 {[%clk 0:00:09]}  Rg3 {[%clk 0:00:32]} 101. f5 {[%clk 0:00:08]}  Rf3 {[%clk 0:00:32]} 102. Kg2 {[%clk 0:00:08]}  Rf4 {[%clk 0:00:32]} 103. Rb5 {[%clk 0:00:07]}  Kh6 {[%clk 0:00:32]} 104. Rb6+ {[%clk 0:00:07]}  Kh5 {[%clk 0:00:31]} 105. Rf6 {[%clk 0:00:07]}  g4 {[%clk 0:00:28]} 106. Rf8 {[%clk 0:00:07]}  gxh3+ {[%clk 0:00:27]} 107. Kxh3 {[%clk 0:00:07]}  Kg5 {[%clk 0:00:27]} 108. f6 {[%clk 0:00:07]}  Rxf6 {[%clk 0:00:26]} 109. Rg8+ {[%clk 0:00:06]}  Rg6 {[%clk 0:00:26]} 110. Ra8 {[%clk 0:00:05]}  Rf6 {[%clk 0:00:25]} 111. Ra5+ {[%clk 0:00:05]}  Rf5 {[%clk 0:00:25]} 112. Ra3 {[%clk 0:00:06]}  Kh5 {[%clk 0:00:25]} 113. Rb3 {[%clk 0:00:06]}  Rg5 {[%clk 0:00:25]} 114. Rb8 {[%clk 0:00:06]}  Rg3+ {[%clk 0:00:25]} 115. Kh2 {[%clk 0:00:06]}  Kg4 {[%clk 0:00:24]} 116. Rb4+ {[%clk 0:00:07]}  Kh5 {[%clk 0:00:24]} 117. Rb5+ {[%clk 0:00:07]}  Rg5 {[%clk 0:00:24]} 118. Rb4 {[%clk 0:00:08]}  Rg4 {[%clk 0:00:24]} 119. Rb3 {[%clk 0:00:08]}  Rg5 {[%clk 0:00:24]} 120. Rb2 {[%clk 0:00:09]}  Kg4 {[%clk 0:00:24]} 121. Ra2 {[%clk 0:00:09]}  Kh5 {[%clk 0:00:24]} 122. Ra1 {[%clk 0:00:10]}  Rf5 {[%clk 0:00:24]} 123. Ra2 {[%clk 0:00:10]}  Rg5 {[%clk 0:00:24]} 124. Ra8 {[%clk 0:00:10]}  Rf5 {[%clk 0:00:24]} 125. Rh8+ {[%clk 0:00:11]}  Kg4 {[%clk 0:00:24]} 126. Rg8+ {[%clk 0:00:11]}  Rg5 {[%clk 0:00:25]} 127. Rf8 {[%clk 0:00:11]}  Rf5 {[%clk 0:00:25]} 128. Rg8+ {[%clk 0:00:12]}  Kh5 {[%clk 0:00:25]} 129. Ra8 {[%clk 0:00:12]}  Kg4 {[%clk 0:00:25]} 130. Ra4+ {[%clk 0:00:12]}  Rf4 {[%clk 0:00:25]} 131. Ra8 {[%clk 0:00:11]}  Rf2+ {[%clk 0:00:25]} 132. Kg1 {[%clk 0:00:12]}  Rf4 {[%clk 0:00:25]} 133. Kh2 {[%clk 0:00:11]}  Rf2+ {[%clk 0:00:25]} 134. Kg1 {[%clk 0:00:11]}  Rf4 {[%clk 0:00:25]} 135. Kh2 {[%clk 0:00:12]} 1/2-1/2


[Site "https://www.chess.com"]